[Event "Titled Tuesday Blitz December 7 2021"]
[White "Svane, Rasmus"]
[Black "Sarana, Alexey"]
[WhiteFideId "4657101"]
[BlackFideId "24133795"]
[WhiteElo "2643"]
[BlackElo "2672"]
[Result "1/2-1/2"]
[Round "11"]
[TimeControl "180+1"]
[Date "2021.12.07"]
[WhiteClock "0:00:07"]
[BlackClock "0:00:03"]

1. Nf3 {[%clk 0:03:00]}  Nf6 {[%clk 0:03:00]} 2. g3 {[%clk 0:03:01]}  d5 {[%clk 0:02:59]} 3. Bg2 {[%clk 0:03:01]}  g6 {[%clk 0:03:00]} 4. O-O {[%clk 0:03:01]}  Bg7 {[%clk 0:03:01]} 5. d4 {[%clk 0:03:01]}  c6 {[%clk 0:03:01]} 6. c3 {[%clk 0:03:01]}  O-O {[%clk 0:03:01]} 7. Re1 {[%clk 0:03:01]}  Bf5 {[%clk 0:03:01]} 8. Nbd2 {[%clk 0:02:56]}  Nbd7 {[%clk 0:03:02]} 9. Nh4 {[%clk 0:02:56]}  Be6 {[%clk 0:03:02]} 10. e4 {[%clk 0:02:57]}  dxe4 {[%clk 0:03:02]} 11. Nxe4 {[%clk 0:02:57]}  Nxe4 {[%clk 0:03:02]} 12. Bxe4 {[%clk 0:02:58]}  Bd5 {[%clk 0:02:59]} 13. Bxd5 {[%clk 0:02:58]}  cxd5 {[%clk 0:03:00]} 14. Bg5 {[%clk 0:02:52]}  Bf6 {[%clk 0:02:59]} 15. Qd2 {[%clk 0:02:48]}  e6 {[%clk 0:02:46]} 16. Nf3 {[%clk 0:02:48]}  Rc8 {[%clk 0:02:42]} 17. Re2 {[%clk 0:02:47]}  b5 {[%clk 0:02:40]} 18. h4 {[%clk 0:02:46]}  a5 {[%clk 0:02:35]} 19. Kg2 {[%clk 0:02:45]}  h5 {[%clk 0:02:32]} 20. Rae1 {[%clk 0:02:41]}  Qb6 {[%clk 0:02:26]} 21. Bxf6 {[%clk 0:02:19]}  Nxf6 {[%clk 0:02:26]} 22. Qh6 {[%clk 0:02:01]}  Ng4 {[%clk 0:02:22]} 23. Qg5 {[%clk 0:01:53]}  Qd8 {[%clk 0:02:21]} 24. Qd2 {[%clk 0:01:43]}  Kg7 {[%clk 0:02:12]} 25. a3 {[%clk 0:01:43]}  Qf6 {[%clk 0:02:08]} 26. Ng5 {[%clk 0:01:39]}  Rc4 {[%clk 0:02:02]} 27. f3 {[%clk 0:00:39]}  Nh6 {[%clk 0:02:02]} 28. Rxe6 {[%clk 0:00:39]}  fxe6 {[%clk 0:01:57]} 29. Nxe6+ {[%clk 0:00:40]}  Kh7 {[%clk 0:01:57]} 30. Nxf8+ {[%clk 0:00:40]}  Qxf8 {[%clk 0:01:56]} 31. Qg5 {[%clk 0:00:32]}  Rc7 {[%clk 0:01:55]} 32. Qxd5 {[%clk 0:00:32]}  Qf5 {[%clk 0:01:19]} 33. Qxf5 {[%clk 0:00:27]}  Nxf5 {[%clk 0:01:20]} 34. Re5 {[%clk 0:00:25]}  b4 {[%clk 0:01:12]} 35. axb4 {[%clk 0:00:26]}  axb4 {[%clk 0:01:13]} 36. g4 {[%clk 0:00:26]}  bxc3 {[%clk 0:00:39]} 37. bxc3 {[%clk 0:00:26]}  hxg4 {[%clk 0:00:39]} 38. fxg4 {[%clk 0:00:27]}  Nd6 {[%clk 0:00:40]} 39. Rc5 {[%clk 0:00:22]}  Rf7 {[%clk 0:00:36]} 40. Rc6 {[%clk 0:00:23]}  Ne4 {[%clk 0:00:36]} 41. d5 {[%clk 0:00:22]}  Rf2+ {[%clk 0:00:35]} 42. Kg1 {[%clk 0:00:20]}  Rd2 {[%clk 0:00:34]} 43. c4 {[%clk 0:00:20]}  Rd4 {[%clk 0:00:34]} 44. g5 {[%clk 0:00:15]}  Kg7 {[%clk 0:00:27]} 45. Rc7+ {[%clk 0:00:15]}  Kf8 {[%clk 0:00:26]} 46. Rc6 {[%clk 0:00:12]}  Kf7 {[%clk 0:00:23]} 47. Rc7+ {[%clk 0:00:11]}  Kf8 {[%clk 0:00:22]} 48. Rc6 {[%clk 0:00:11]}  Nd2 {[%clk 0:00:19]} 49. Rxg6 {[%clk 0:00:07]}  Nxc4 {[%clk 0:00:19]} 50. h5 {[%clk 0:00:07]}  Ne5 {[%clk 0:00:12]} 51. Rf6+ {[%clk 0:00:07]}  Kg7 {[%clk 0:00:11]} 52. h6+ {[%clk 0:00:06]}  Kh7 {[%clk 0:00:12]} 53. Rf5 {[%clk 0:00:05]}  Rxd5 {[%clk 0:00:12]} 54. Kg2 {[%clk 0:00:04]}  Kg6 {[%clk 0:00:11]} 55. Rf8 {[%clk 0:00:02]}  Rd2+ {[%clk 0:00:05]} 56. Kg3 {[%clk 0:00:02]}  Rd3+ {[%clk 0:00:06]} 57. Kg2 {[%clk 0:00:02]}  Rd2+ {[%clk 0:00:06]} 58. Kg3 {[%clk 0:00:03]}  Rd7 {[%clk 0:00:06]} 59. Rg8+ {[%clk 0:00:03]}  Kf5 {[%clk 0:00:07]} 60. Rg7 {[%clk 0:00:03]}  Rd3+ {[%clk 0:00:07]} 61. Kg2 {[%clk 0:00:03]}  Rd2+ {[%clk 0:00:08]} 62. Kf1 {[%clk 0:00:03]}  Rh2 {[%clk 0:00:06]} 63. h7 {[%clk 0:00:03]}  Ng6 {[%clk 0:00:07]} 64. Kg1 {[%clk 0:00:03]}  Rh5 {[%clk 0:00:07]} 65. Kg2 {[%clk 0:00:03]}  Kxg5 {[%clk 0:00:08]} 66. Kg3 {[%clk 0:00:03]}  Kf6 {[%clk 0:00:07]} 67. Ra7 {[%clk 0:00:03]}  Rh6 {[%clk 0:00:08]} 68. Kg4 {[%clk 0:00:03]}  Rh1 {[%clk 0:00:08]} 69. Kg3 {[%clk 0:00:03]}  Nf8 {[%clk 0:00:07]} 70. Ra6+ {[%clk 0:00:03]}  Kg7 {[%clk 0:00:06]} 71. Ra7+ {[%clk 0:00:03]}  Kg6 {[%clk 0:00:05]} 72. h8=Q {[%clk 0:00:02]}  Rxh8 {[%clk 0:00:04]} 73. Ra8 {[%clk 0:00:03]}  Rg8 {[%clk 0:00:04]} 74. Kf3 {[%clk 0:00:04]}  Kf7 {[%clk 0:00:05]} 75. Ra7+ {[%clk 0:00:04]}  Kf6 {[%clk 0:00:06]} 76. Ra8 {[%clk 0:00:05]}  Ke7 {[%clk 0:00:06]} 77. Ra7+ {[%clk 0:00:05]}  Nd7 {[%clk 0:00:07]} 78. Ke4 {[%clk 0:00:06]}  Rg4+ {[%clk 0:00:07]} 79. Ke3 {[%clk 0:00:06]}  Ke6 {[%clk 0:00:07]} 80. Ra6+ {[%clk 0:00:06]}  Kd5 {[%clk 0:00:07]} 81. Ra8 {[%clk 0:00:07]}  Re4+ {[%clk 0:00:06]} 82. Kf3 {[%clk 0:00:07]}  Ne5+ {[%clk 0:00:06]} 83. Kg3 {[%clk 0:00:08]}  Kd4 {[%clk 0:00:06]} 84. Rd8+ {[%clk 0:00:07]}  Ke3 {[%clk 0:00:06]} 85. Rg8 {[%clk 0:00:08]}  Ra4 {[%clk 0:00:06]} 86. Re8 {[%clk 0:00:06]}  Rg4+ {[%clk 0:00:05]} 87. Kh3 {[%clk 0:00:06]}  Rg5 {[%clk 0:00:06]} 88. Kh4 {[%clk 0:00:05]}  Rf5 {[%clk 0:00:03]} 89. Kg3 {[%clk 0:00:06]}  Ke4 {[%clk 0:00:02]} 90. Rg8 {[%clk 0:00:06]}  Rf3+ {[%clk 0:00:02]} 91. Kg2 {[%clk 0:00:06]}  Ra3 {[%clk 0:00:02]} 92. Rb8 {[%clk 0:00:05]}  Ra2+ {[%clk 0:00:03]} 93. Kg3 {[%clk 0:00:05]}  Ra7 {[%clk 0:00:02]} 94. Rb4+ {[%clk 0:00:05]}  Ke3 {[%clk 0:00:03]} 95. Rb3+ {[%clk 0:00:05]}  Nd3 {[%clk 0:00:03]} 96. Kg4 {[%clk 0:00:05]}  Rf7 {[%clk 0:00:04]} 97. Kg5 {[%clk 0:00:05]}  Ke4 {[%clk 0:00:05]} 98. Rb1 {[%clk 0:00:05]}  Rf5+ {[%clk 0:00:04]} 99. Kg6 {[%clk 0:00:05]}  Ne5+ {[%clk 0:00:05]} 100. Kg7 {[%clk 0:00:06]}  Rf7+ {[%clk 0:00:05]} 101. Kh6 {[%clk 0:00:04]}  Kd5 {[%clk 0:00:03]} 102. Kg5 {[%clk 0:00:04]}  Rf8 {[%clk 0:00:03]} 103. Rd1+ {[%clk 0:00:03]}  Ke6 {[%clk 0:00:03]} 104. Ra1 {[%clk 0:00:04]}  Rg8+ {[%clk 0:00:03]} 105. Kf4 {[%clk 0:00:04]}  Rg4+ {[%clk 0:00:03]} 106. Ke3 {[%clk 0:00:04]}  Rh4 {[%clk 0:00:04]} 107. Ra6+ {[%clk 0:00:04]}  Kf5 {[%clk 0:00:03]} 108. Ra8 {[%clk 0:00:05]}  Nc4+ {[%clk 0:00:03]} 109. Kd3 {[%clk 0:00:05]}  Ne5+ {[%clk 0:00:01]} 110. Ke3 {[%clk 0:00:06]}  Rh3+ {[%clk 0:00:02]} 111. Kd4 {[%clk 0:00:06]}  Rd3+ {[%clk 0:00:02]} 112. Kc5 {[%clk 0:00:06]}  Rd7 {[%clk 0:00:02]} 113. Rf8+ {[%clk 0:00:06]}  Ke4 {[%clk 0:00:03]} 114. Ra8 {[%clk 0:00:07]}  Rc7+ {[%clk 0:00:03]} 115. Kd6 {[%clk 0:00:06]}  Rc6+ {[%clk 0:00:03]} 116. Ke7 {[%clk 0:00:07]}  Rh6 {[%clk 0:00:02]} 117. Ra1 {[%clk 0:00:06]}  Nc6+ {[%clk 0:00:03]} 118. Kd7 {[%clk 0:00:06]}  Kd5 {[%clk 0:00:03]} 119. Rd1+ {[%clk 0:00:06]}  Nd4 {[%clk 0:00:04]} 120. Ke7 {[%clk 0:00:07]}  Ra6 {[%clk 0:00:04]} 121. Kf7 {[%clk 0:00:06]}  Ke5 {[%clk 0:00:03]} 122. Re1+ {[%clk 0:00:07]}  Kd6 {[%clk 0:00:03]} 1/2-1/2


[Site "https://www.chess.com"]

[Event "Titled Tuesday Blitz December 7 2021"]
[White "Tanenbaum, Zachary"]
[Black "Gontcharov, Vladislav"]
[WhiteFideId "2060850"]
[BlackFideId "4123492"]
[WhiteElo "2168"]
[BlackElo "2503"]
[Result "1-0"]
[Round "11"]
[TimeControl "180+1"]
[Date "2021.12.07"]
[WhiteClock "0:00:05"]
[BlackClock "0:00:07"]

1. e4 {[%clk 0:03:00]}  e6 {[%clk 0:02:59]} 2. d4 {[%clk 0:03:01]}  d5 {[%clk 0:02:58]} 3. Nc3 {[%clk 0:03:01]}  Bb4 {[%clk 0:02:57]} 4. exd5 {[%clk 0:03:01]}  exd5 {[%clk 0:02:56]} 5. Bd3 {[%clk 0:03:02]}  Ne7 {[%clk 0:02:56]} 6. Nf3 {[%clk 0:03:02]}  Bf5 {[%clk 0:02:55]} 7. O-O {[%clk 0:03:01]}  O-O {[%clk 0:02:53]} 8. Bxf5 {[%clk 0:03:00]}  Nxf5 {[%clk 0:02:52]} 9. Qd3 {[%clk 0:03:01]}  Qd7 {[%clk 0:02:19]} 10. Ne5 {[%clk 0:03:00]}  Qe6 {[%clk 0:02:19]} 11. Nxd5 {[%clk 0:02:59]}  Qxd5 {[%clk 0:02:16]} 12. Qxf5 {[%clk 0:02:59]}  Bd6 {[%clk 0:02:08]} 13. Qf3 {[%clk 0:02:47]}  Qxd4 {[%clk 0:02:02]} 14. Nxf7 {[%clk 0:01:20]}  Nc6 {[%clk 0:01:46]} 15. Be3 {[%clk 0:00:17]}  Qh4 {[%clk 0:01:44]} 16. g3 {[%clk 0:00:15]}  Qe7 {[%clk 0:01:42]} 17. Nh6+ {[%clk 0:00:15]}  gxh6 {[%clk 0:01:42]} 18. Qg4+ {[%clk 0:00:15]}  Qg7 {[%clk 0:01:36]} 19. Qe6+ {[%clk 0:00:14]}  Rf7 {[%clk 0:01:35]} 20. Bxh6 {[%clk 0:00:13]}  Qg6 {[%clk 0:01:34]} 21. Qh3 {[%clk 0:00:14]}  Qxc2 {[%clk 0:01:25]} 22. Rae1 {[%clk 0:00:12]}  Ne5 {[%clk 0:01:21]} 23. Kh1 {[%clk 0:00:12]}  Qf5 {[%clk 0:01:13]} 24. Qh4 {[%clk 0:00:08]}  Qf3+ {[%clk 0:01:00]} 25. Kg1 {[%clk 0:00:07]}  Qg4 {[%clk 0:00:58]} 26. Qxg4+ {[%clk 0:00:06]}  Nxg4 {[%clk 0:00:58]} 27. Bd2 {[%clk 0:00:07]}  Re7 {[%clk 0:00:56]} 28. Rxe7 {[%clk 0:00:05]}  Bxe7 {[%clk 0:00:56]} 29. h3 {[%clk 0:00:06]}  Ne5 {[%clk 0:00:55]} 30. Kg2 {[%clk 0:00:07]}  Bd6 {[%clk 0:00:55]} 31. Bc3 {[%clk 0:00:07]}  Re8 {[%clk 0:00:50]} 32. Re1 {[%clk 0:00:06]}  Kf7 {[%clk 0:00:50]} 33. f4 {[%clk 0:00:06]}  Nc6 {[%clk 0:00:47]} 34. Rxe8 {[%clk 0:00:05]}  Kxe8 {[%clk 0:00:47]} 35. Kf3 {[%clk 0:00:06]}  Kf7 {[%clk 0:00:44]} 36. Ke4 {[%clk 0:00:06]}  Nd8 {[%clk 0:00:36]} 37. g4 {[%clk 0:00:05]}  Ne6 {[%clk 0:00:36]} 38. Bd2 {[%clk 0:00:06]}  h6 {[%clk 0:00:34]} 39. h4 {[%clk 0:00:04]}  Nc5+ {[%clk 0:00:28]} 40. Kf5 {[%clk 0:00:04]}  Nd3 {[%clk 0:00:26]} 41. b3 {[%clk 0:00:02]}  Bb4 {[%clk 0:00:26]} 42. Be3 {[%clk 0:00:02]}  Bc5 {[%clk 0:00:25]} 43. Bd2 {[%clk 0:00:03]}  Nb4 {[%clk 0:00:25]} 44. g5 {[%clk 0:00:03]}  Nxa2 {[%clk 0:00:21]} 45. g6+ {[%clk 0:00:02]}  Kg8 {[%clk 0:00:21]} 46. h5 {[%clk 0:00:03]}  Bd4 {[%clk 0:00:19]} 47. Ke6 {[%clk 0:00:03]}  Kg7 {[%clk 0:00:19]} 48. f5 {[%clk 0:00:03]}  c5 {[%clk 0:00:15]} 49. Bf4 {[%clk 0:00:04]}  b5 {[%clk 0:00:14]} 50. Bd6 {[%clk 0:00:04]}  Nc1 {[%clk 0:00:12]} 51. Be7 {[%clk 0:00:04]}  Nxb3 {[%clk 0:00:09]} 52. f6+ {[%clk 0:00:05]}  Bxf6 {[%clk 0:00:09]} 53. Bxf6+ {[%clk 0:00:05]}  Kg8 {[%clk 0:00:09]} 54. Be5 {[%clk 0:00:03]}  a5 {[%clk 0:00:09]} 55. Kf5 {[%clk 0:00:04]}  a4 {[%clk 0:00:10]} 56. g7 {[%clk 0:00:04]}  a3 {[%clk 0:00:07]} 57. Kg6 {[%clk 0:00:05]}  b4 {[%clk 0:00:06]} 58. Kxh6 {[%clk 0:00:05]}  c4 {[%clk 0:00:07]} 59. Kg6 {[%clk 0:00:05]} 1-0


[Site "https://www.chess.com"]

[Event "Titled Tuesday Blitz December 7 2021"]
[White "Todorovic, Bojan"]
[Black "Pacheco Lugo, Alejandro Jose"]
[WhiteFideId "917087"]
[BlackFideId "3903745"]
[WhiteElo "2266"]
[BlackElo "2125"]
[Result "0-1"]
[Round "11"]
[TimeControl "180+1"]
[Date "2021.12.07"]
[WhiteClock "0:00:02"]
[BlackClock "0:00:39"]

1. d4 {[%clk 0:02:59]}  Nf6 {[%clk 0:03:00]} 2. c4 {[%clk 0:02:58]}  e6 {[%clk 0:03:00]} 3. Nf3 {[%clk 0:02:56]}  d6 {[%clk 0:02:59]} 4. Nc3 {[%clk 0:02:53]}  Nbd7 {[%clk 0:02:57]} 5. e4 {[%clk 0:02:50]}  e5 {[%clk 0:02:57]} 6. Be2 {[%clk 0:02:46]}  Be7 {[%clk 0:02:56]} 7. O-O {[%clk 0:02:46]}  O-O {[%clk 0:02:57]} 8. b3 {[%clk 0:02:37]}  Re8 {[%clk 0:02:56]} 9. Bb2 {[%clk 0:02:32]}  c6 {[%clk 0:02:56]} 10. Re1 {[%clk 0:02:32]}  Bf8 {[%clk 0:02:54]} 11. d5 {[%clk 0:02:24]}  a5 {[%clk 0:02:53]} 12. Qd2 {[%clk 0:02:03]}  Nc5 {[%clk 0:02:48]} 13. Bd1 {[%clk 0:01:56]}  Qb6 {[%clk 0:02:34]} 14. Rb1 {[%clk 0:01:44]}  Bd7 {[%clk 0:02:31]} 15. h3 {[%clk 0:01:31]}  h6 {[%clk 0:02:29]} 16. Bc1 {[%clk 0:01:31]}  Qc7 {[%clk 0:02:26]} 17. a3 {[%clk 0:01:26]}  Na6 {[%clk 0:02:10]} 18. b4 {[%clk 0:01:23]}  axb4 {[%clk 0:02:09]} 19. axb4 {[%clk 0:01:23]}  Rec8 {[%clk 0:02:06]} 20. Be2 {[%clk 0:01:18]}  cxd5 {[%clk 0:01:55]} 21. exd5 {[%clk 0:01:00]}  Bf5 {[%clk 0:01:53]} 22. Rb3 {[%clk 0:00:59]}  Qb6 {[%clk 0:01:31]} 23. Qe3 {[%clk 0:00:51]}  Nc5 {[%clk 0:01:19]} 24. Nd2 {[%clk 0:00:41]}  Na4 {[%clk 0:01:15]} 25. c5 {[%clk 0:00:32]}  dxc5 {[%clk 0:01:08]} 26. Nc4 {[%clk 0:00:32]}  Qa7 {[%clk 0:01:04]} 27. Nb5 {[%clk 0:00:29]}  Qb8 {[%clk 0:01:03]} 28. d6 {[%clk 0:00:12]}  Be6 {[%clk 0:00:52]} 29. Qxe5 {[%clk 0:00:10]}  cxb4 {[%clk 0:00:49]} 30. Rxb4 {[%clk 0:00:09]}  Rc5 {[%clk 0:00:45]} 31. Qf4 {[%clk 0:00:08]}  Nd5 {[%clk 0:00:39]} 32. Qd4 {[%clk 0:00:02]}  Nxb4 {[%clk 0:00:39]} 0-1


[Site "https://www.chess.com"]

[Event "Titled Tuesday Blitz December 7 2021"]
[White "Vantika, Agrawal"]
[Black "Begmuratov, Khumoyun"]
[WhiteFideId "25050389"]
[BlackFideId "14210207"]
[WhiteElo "1917"]
[BlackElo "1961"]
[Result "0-1"]
[Round "11"]
[TimeControl "180+1"]
[Date "2021.12.07"]
[WhiteClock "0:00:05"]
[BlackClock "0:00:07"]

1. Nf3 {[%clk 0:03:00]}  Nf6 {[%clk 0:02:59]} 2. c4 {[%clk 0:03:00]}  g6 {[%clk 0:03:00]} 3. Nc3 {[%clk 0:02:59]}  Bg7 {[%clk 0:03:00]} 4. e4 {[%clk 0:02:59]}  O-O {[%clk 0:03:01]} 5. d4 {[%clk 0:02:59]}  d6 {[%clk 0:03:01]} 6. Be2 {[%clk 0:02:59]}  b6 {[%clk 0:03:02]} 7. O-O {[%clk 0:02:56]}  Bb7 {[%clk 0:03:02]} 8. e5 {[%clk 0:02:52]}  dxe5 {[%clk 0:02:59]} 9. Nxe5 {[%clk 0:02:51]}  Nbd7 {[%clk 0:02:53]} 10. Be3 {[%clk 0:02:50]}  Nxe5 {[%clk 0:02:28]} 11. dxe5 {[%clk 0:02:50]}  Ne4 {[%clk 0:02:26]} 12. Qxd8 {[%clk 0:02:38]}  Raxd8 {[%clk 0:02:24]} 13. Bf3 {[%clk 0:02:38]}  Nxc3 {[%clk 0:02:09]} 14. Bxb7 {[%clk 0:02:37]}  Ne2+ {[%clk 0:02:10]} 15. Kh1 {[%clk 0:02:37]}  Bxe5 {[%clk 0:02:10]} 16. Rae1 {[%clk 0:02:35]}  Nd4 {[%clk 0:01:49]} 17. Bxd4 {[%clk 0:02:19]}  Bxd4 {[%clk 0:01:48]} 18. Rxe7 {[%clk 0:02:19]}  c5 {[%clk 0:01:45]} 19. Bd5 {[%clk 0:02:14]}  Kg7 {[%clk 0:01:35]} 20. b3 {[%clk 0:02:09]}  a5 {[%clk 0:01:20]} 21. g3 {[%clk 0:02:06]}  Rde8 {[%clk 0:01:17]} 22. Rfe1 {[%clk 0:01:51]}  Rxe7 {[%clk 0:01:08]} 23. Rxe7 {[%clk 0:01:52]}  Bxf2 {[%clk 0:01:03]} 24. Rb7 {[%clk 0:01:52]}  Bd4 {[%clk 0:01:02]} 25. Rxb6 {[%clk 0:01:49]}  f5 {[%clk 0:01:01]} 26. Rb7+ {[%clk 0:01:47]}  Kh6 {[%clk 0:01:00]} 27. Ra7 {[%clk 0:01:43]}  Bc3 {[%clk 0:00:51]} 28. Kg2 {[%clk 0:01:41]}  Re8 {[%clk 0:00:47]} 29. Kf3 {[%clk 0:01:34]}  Bd4 {[%clk 0:00:41]} 30. Rxa5 {[%clk 0:01:32]}  Re3+ {[%clk 0:00:41]} 31. Kg2 {[%clk 0:01:30]}  Re2+ {[%clk 0:00:41]} 32. Kh1 {[%clk 0:00:57]}  g5 {[%clk 0:00:40]} 33. Ra6+ {[%clk 0:00:52]}  Kg7 {[%clk 0:00:40]} 34. a4 {[%clk 0:00:43]}  Re1+ {[%clk 0:00:20]} 35. Kg2 {[%clk 0:00:42]}  Rg1+ {[%clk 0:00:12]} 36. Kf3 {[%clk 0:00:41]}  Rf1+ {[%clk 0:00:10]} 37. Ke2 {[%clk 0:00:39]}  Rf2+ {[%clk 0:00:10]} 38. Kd3 {[%clk 0:00:36]}  Rxh2 {[%clk 0:00:11]} 39. Ra7+ {[%clk 0:00:35]}  Kh6 {[%clk 0:00:10]} 40. a5 {[%clk 0:00:32]}  Rb2 {[%clk 0:00:09]} 41. Rb7 {[%clk 0:00:29]}  Ra2 {[%clk 0:00:09]} 42. Rb6+ {[%clk 0:00:28]}  Kh5 {[%clk 0:00:08]} 43. a6 {[%clk 0:00:25]}  Kg4 {[%clk 0:00:09]} 44. Be6 {[%clk 0:00:13]}  h5 {[%clk 0:00:07]} 45. Bc8 {[%clk 0:00:08]}  Kxg3 {[%clk 0:00:07]} 46. Bxf5 {[%clk 0:00:08]}  g4 {[%clk 0:00:07]} 47. b4 {[%clk 0:00:06]}  Ra3+ {[%clk 0:00:07]} 48. Ke4 {[%clk 0:00:06]}  Kf2 {[%clk 0:00:06]} 49. bxc5 {[%clk 0:00:06]}  Bxc5 {[%clk 0:00:05]} 50. Rb5 {[%clk 0:00:06]}  g3 {[%clk 0:00:06]} 51. Bh3 {[%clk 0:00:04]}  Ba7 {[%clk 0:00:04]} 52. Rxh5 {[%clk 0:00:02]}  Rxa6 {[%clk 0:00:03]} 53. Rf5+ {[%clk 0:00:03]}  Kg1 {[%clk 0:00:04]} 54. Rg5 {[%clk 0:00:02]}  Ra3 {[%clk 0:00:03]} 55. Kf4 {[%clk 0:00:02]}  Be3+ {[%clk 0:00:03]} 56. Kf5 {[%clk 0:00:01]}  Bxg5 {[%clk 0:00:04]} 57. Kxg5 {[%clk 0:00:02]}  g2 {[%clk 0:00:04]} 58. Bxg2 {[%clk 0:00:03]}  Kxg2 {[%clk 0:00:05]} 59. Kf5 {[%clk 0:00:03]}  Rc3 {[%clk 0:00:06]} 60. Ke4 {[%clk 0:00:04]}  Rxc4+ {[%clk 0:00:06]} 61. Kd5 {[%clk 0:00:05]}  Rc8 {[%clk 0:00:07]} 0-1


[Site "https://www.chess.com"]

[Event "Titled Tuesday Blitz December 7 2021"]
[White "Yurovskykh, Oleksandr"]
[Black "Zhigalko, Sergei"]
[WhiteFideId "14134020"]
[BlackFideId "13502956"]
[WhiteElo "2292"]
[BlackElo "2662"]
[Result "0-1"]
[Round "11"]
[TimeControl "180+1"]
[Date "2021.12.07"]
[WhiteClock "0:00:02"]
[BlackClock "0:00:05"]

1. d4 {[%clk 0:03:00]}  Nf6 {[%clk 0:03:00]} 2. Nf3 {[%clk 0:03:00]}  e6 {[%clk 0:03:00]} 3. Bf4 {[%clk 0:03:01]}  d5 {[%clk 0:02:57]} 4. e3 {[%clk 0:02:59]}  c5 {[%clk 0:02:57]} 5. c3 {[%clk 0:02:59]}  Nc6 {[%clk 0:02:54]} 6. Nbd2 {[%clk 0:02:59]}  Bd6 {[%clk 0:02:46]} 7. Bg3 {[%clk 0:02:59]}  O-O {[%clk 0:02:47]} 8. Bb5 {[%clk 0:02:58]}  Ne7 {[%clk 0:02:41]} 9. Bd3 {[%clk 0:02:58]}  Ng6 {[%clk 0:02:20]} 10. Bxd6 {[%clk 0:02:55]}  Qxd6 {[%clk 0:02:20]} 11. Bxg6 {[%clk 0:02:56]}  hxg6 {[%clk 0:02:18]} 12. Ne5 {[%clk 0:02:56]}  b6 {[%clk 0:02:09]} 13. f4 {[%clk 0:02:47]}  a5 {[%clk 0:02:00]} 14. h4 {[%clk 0:02:42]}  Ba6 {[%clk 0:01:55]} 15. g4 {[%clk 0:02:41]}  cxd4 {[%clk 0:01:53]} 16. exd4 {[%clk 0:02:40]}  Nd7 {[%clk 0:01:18]} 17. h5 {[%clk 0:02:36]}  g5 {[%clk 0:01:16]} 18. Ndf3 {[%clk 0:02:21]}  gxf4 {[%clk 0:01:08]} 19. Qd2 {[%clk 0:02:20]}  f6 {[%clk 0:00:55]} 20. Ng6 {[%clk 0:02:04]}  e5 {[%clk 0:00:51]} 21. Nxf8 {[%clk 0:01:58]}  Rxf8 {[%clk 0:00:46]} 22. dxe5 {[%clk 0:01:53]}  fxe5 {[%clk 0:00:33]} 23. O-O-O {[%clk 0:01:23]}  Nf6 {[%clk 0:00:16]} 24. g5 {[%clk 0:01:21]}  Ng4 {[%clk 0:00:13]} 25. Qxd5+ {[%clk 0:00:27]}  Qxd5 {[%clk 0:00:14]} 26. Rxd5 {[%clk 0:00:28]}  Bb7 {[%clk 0:00:14]} 27. Rhd1 {[%clk 0:00:14]}  Bxd5 {[%clk 0:00:13]} 28. Rxd5 {[%clk 0:00:15]}  e4 {[%clk 0:00:13]} 29. Nd2 {[%clk 0:00:14]}  Re8 {[%clk 0:00:02]} 30. Rf5 {[%clk 0:00:13]}  f3 {[%clk 0:00:02]} 31. Nxf3 {[%clk 0:00:08]}  exf3 {[%clk 0:00:03]} 32. Rxf3 {[%clk 0:00:09]}  Re2 {[%clk 0:00:02]} 33. Rf5 {[%clk 0:00:07]}  Ne5 {[%clk 0:00:03]} 34. b4 {[%clk 0:00:03]}  a4 {[%clk 0:00:02]} 35. h6 {[%clk 0:00:02]}  gxh6 {[%clk 0:00:02]} 36. gxh6 {[%clk 0:00:03]}  Kh7 {[%clk 0:00:02]} 37. Rf6 {[%clk 0:00:03]}  b5 {[%clk 0:00:02]} 38. Rb6 {[%clk 0:00:03]}  Nd3+ {[%clk 0:00:02]} 39. Kd1 {[%clk 0:00:03]}  Rxa2 {[%clk 0:00:03]} 40. Rxb5 {[%clk 0:00:03]}  Kxh6 {[%clk 0:00:03]} 41. Ra5 {[%clk 0:00:02]}  Kg6 {[%clk 0:00:04]} 42. b5 {[%clk 0:00:02]}  Nb2+ {[%clk 0:00:04]} 43. Ke2 {[%clk 0:00:02]}  Nc4+ {[%clk 0:00:05]} 0-1